fUST/lending_fUST_20251015
["ID","MTS","AMOUNT","RATE_DAILY","PERIOD"]
[391313635,1760509836650,-1000.0,0.00028767,5]
[391313636,1760509836659,-175.47599402,0.00028782,120]
[391313637,1760509836669,-14309.87,0.000288,7]
[391313638,1760509836678,-2323.20470273,0.000288,10]
[391313639,1760509836687,-25000.0,0.0002887,7]
[391313640,1760509836696,-9744.39,0.000289,2]
[391313641,1760509836705,-5239.02206396,0.000289,2]
[391313642,1760509836714,-5000.0,0.000289,18]
[391313643,1760509836724,-5000.0,0.0002891,21]
[391313644,1760509836733,-881.11332345,0.00029,2]
[391313645,1760509836742,-32258.87785002,0.00029,120]
[391313646,1760509836751,-1076.72,0.00029,2]
[391313647,1760509836760,-1063.89237728,0.00029016,5]
[391313648,1760509836770,-200.0,0.0002902,22]
[391313649,1760509836779,-1000.0,0.00029116,7]
[391313650,1760509836789,-1076.72,0.00029174,2]
[391313651,1760509836798,-20605.64,0.000293,3]
[391313652,1760509836807,-1076.72,0.00029348,2]
[391313653,1760509836816,-925.4094988,0.000295,10]
[391313654,1760509836825,-3219.52,0.000295,2]
[391313655,1760509836835,-1076.72,0.00029522,2]
[391313656,1760509836844,-79422.81812169,0.0002956,2]
[391313657,1760509836854,-249.95948288,0.00029564,2]
[391313658,1760509836863,-151.00139344,0.00029573,5]
[391313659,1760509836872,-981.0,0.00029576,2]
[391313660,1760509836881,-631.0,0.00029576,2]
[391313661,1760509836890,-2161.0,0.00029576,2]
[391313662,1760509836899,-411.0,0.00029576,2]
[391313663,1760509836908,-411.0,0.00029576,2]
[391313664,1760509836917,-713.29,0.00029589,2]
[391313665,1760509836927,-50000.0,0.000296,3]
[391313666,1760509836937,-50000.0,0.000296,2]
[391313667,1760509836946,-50000.0,0.000296,4]
[391313668,1760509836955,-20605.64,0.000296,3]
[391313669,1760509836964,-9625.87111965,0.000297,2]
[391313670,1760509836974,-21060.44313472,0.000297,3]
[391313671,1760509837025,-1244.60680443,0.000297,3]
[391313680,1760509838722,-152.987655,0.0002489,7]
[391313681,1760509838731,-2099.933661,0.000297,3]
[391313687,1760509840547,-1343.64,0.000297,3]
[391313688,1760509840560,-12802.26600056,0.000297,3]
[391313705,1760509846638,-2660.39039929,0.000297,3]
[391313706,1760509846648,-1017.475544,0.0002976,5]
[391313707,1760509846658,-1000.0,0.0002978,5]
[391313708,1760509846667,-1165.68663,0.0002978,5]
[391313709,1760509846678,-1197.85488949,0.000298,2]
[391313710,1760509846690,-98382.92817362,0.000298,2]
[391313711,1760509846700,-3119.1972073,0.000298,7]
[391313712,1760509846709,-8244.60362395,0.000298,120]
[391313714,1760509846718,-1000.0,0.000298,5]
[391313715,1760509846727,-1000.0,0.000298,5]
[391313716,1760509846739,-205.500394,0.000298,2]
[391313717,1760509846748,-5681.69883494,0.00029827,2]
[391313718,1760509846757,-160.0,0.00029831,4]
[391313719,1760509846767,-163.62112644,0.00029831,5]
[391313720,1760509846776,-500.0,0.00029838,2]
[391313721,1760509846785,-4609.63121952,0.00029863,2]
[391313722,1760509846794,-7000.0,0.00029863,2]
[391313723,1760509846803,-7000.0,0.00029863,2]
[391313724,1760509846812,-3870.91990787,0.00029863,2]
[391313725,1760509846821,-6600.74318243,0.00029863,2]
[391313726,1760509846830,-874.95938178,0.0002987,10]
[391313727,1760509846839,-25000.0,0.0002987,7]
[391313728,1760509846848,-3143.4132384,0.000299,2]
[391313729,1760509846857,-5038.75261308,0.00029927,26]
[391313730,1760509846867,-5034.57638524,0.00029927,22]
[391313731,1760509846876,-1000.0,0.00029938,7]
[391313732,1760509846885,-600.0,0.00029977,30]
[391313733,1760509846894,-200.0,0.00029988,120]
[391313734,1760509846903,-1000.0,0.0003,4]
[391313735,1760509846912,-1790.65524495,0.0003,2]
[391313736,1760509846922,-7284.07544672,0.0003,2]
[391313737,1760509846931,-22838.43435684,0.0003,120]
[391313738,1760509846940,-785.81490251,0.0003,60]
[391313739,1760509846949,-216.0,0.0003,120]
[391313740,1760509846958,-102720.78615319,0.0003,5]
[391313741,1760509846967,-1500.14310217,0.0003,7]
[391313742,1760509846976,-27316.97609375,0.0003,9]
[391313743,1760509846989,-1302.85,0.0003,2]
[391313744,1760509846999,-1807.066,0.0003,10]
[391313745,1760509847008,-500.0,0.0003,2]
[391313746,1760509847017,-2115.40100757,0.0003,2]
[391313747,1760509847026,-219606.18246982,0.0003,2]
[391313748,1760509847035,-212.90916365,0.0003,120]
[391313749,1760509847044,-1502.553482,0.0003,2]
[391313750,1760509847053,-1105.27576149,0.0003,7]
[391313751,1760509847062,-3143.41323837,0.00030007,2]
[391313752,1760509847072,-150.0,0.00030081,2]
[391313753,1760509847082,-150.0,0.00030081,2]
[391313754,1760509847091,-150.0,0.00030081,2]
[391313755,1760509847100,-150.0,0.00030081,2]
[391313756,1760509847109,-150.0,0.00030081,2]
[391313757,1760509847118,-150.0,0.00030081,2]
[391313758,1760509847127,-96526.34725221,0.000301,3]
[391313759,1760509847136,-302.52126667,0.0003012,7]
[391313760,1760509847145,-285.23326993,0.0003013,2]
[391313761,1760509847154,-780.81452283,0.00030132,120]
[391313762,1760509847164,-4999.0,0.00030136,8]
[391313763,1760509847173,-1500.0,0.00030137,5]
[391313764,1760509847182,-14309.87,0.000302,7]
[391313765,1760509847191,-9744.39,0.000303,2]
[391313766,1760509847200,-177.47262723,0.00030326,2]
[391313767,1760509847209,-184.85437379,0.0003034,2]
[391313768,1760509847219,-81506.36422978,0.0003034,2]
[391313769,1760509847228,-200.0,0.00030361,120]
[391313770,1760509847237,-2000.0,0.000304,3]
[391313771,1760509847246,-250.0,0.000304,7]
[391313772,1760509847255,-166.1,0.000304,7]
[391313773,1760509847265,-248.96,0.000304,13]
[391313774,1760509847276,-1160253.07912175,0.00030426,20]
[391313775,1760509930498,10200.0,0.00028,120]
[391313792,1760510057139,1400.0,0.00028493,120]
[391313793,1760510227931,236.8801,0.0002849,120]
[391313794,1760510373389,3561.0,0.00028493,120]
[391313796,1760510534266,389.848573,0.00013699,2]
[391313808,1760510953130,-1326.01066236,0.000191,2]
[391313809,1760510953150,-4868.19761104,0.00019293,2]
[391313810,1760510956083,-131.80238896,0.00019293,2]
[391313811,1760510956106,-574.45401753,0.00019488,2]
[391313812,1760510956125,-500.0,0.000198,2]
[391313813,1760510956145,-150.0,0.00019986,2]
[391313814,1760510956164,-104.45530331,0.00020186,2]
[391313816,1760510957120,-1095.54469669,0.00020186,2]
[391313817,1760510957140,-389.848573,0.00020187,2]
[391313818,1760510957160,-172.5,0.00020586,2]
[391313819,1760510957178,-300.0,0.00021185,2]
[391313820,1760510957197,-195.0,0.00021186,2]
[391313821,1760510957216,-300.0,0.00021783,2]
[391313822,1760510957236,-953.0,0.00021784,2]
[391313823,1760510957255,-217.5,0.00021786,2]
[391313824,1760510957276,-177.0,0.00022,2]
[391313825,1760510957295,-300.0,0.00022371,2]
[391313826,1760510957438,-300.0,0.00022371,2]
[391313827,1760510957460,-300.0,0.00022371,2]
[391313828,1760510957480,-308.8761055,0.00022372,2]
[391313829,1760510957499,-240.0,0.00022386,2]
[391313830,1760510957518,-76.97046494,0.00022986,2]
[391313831,1760510964093,-3515.02196979,0.00022756,2]
[391313832,1760510964115,-185.52953506,0.00022986,2]
[391313833,1760510964137,-285.0,0.00023586,2]
[391313834,1760510964160,-212.83730364,0.00023676,2]
[391313836,1760511013485,151.0,0.00028493,120]
[391313845,1760511031781,-151.0,0.00019774,2]
[391313847,1760511031791,-151.0,0.00019774,2]
[391313848,1760511031799,-45.77421581,0.00019774,2]
[391313898,1760511037829,-105.22578419,0.00019774,2]
[391313899,1760511037838,-151.0,0.00019774,2]
[391313900,1760511037849,-151.0,0.00019774,2]
[391313901,1760511037858,-151.0,0.00019774,2]
[391313902,1760511037867,-151.0,0.00019774,2]
[391313903,1760511037876,-151.0,0.00019774,2]
[391313904,1760511037885,-151.0,0.00019774,2]
[391313905,1760511037894,-219.17832183,0.00019774,2]
[391313906,1760511037903,-268.2,0.0002023,2]
[391313907,1760511037911,-151.0,0.00021918,2]
[391313908,1760511037920,-536.39,0.00022069,2]
[391313909,1760511037929,-156.587,0.00022466,2]
[391313910,1760511037938,-156.587,0.00023014,2]
[391313911,1760511037948,-804.59,0.00023908,2]
[391313912,1760511037957,-307.5,0.00024186,2]
[391313913,1760511037966,-192.49064676,0.00024253,2]
[391313914,1760511037975,-155.31715807,0.00024507,2]
[391313915,1760511037984,-300.0,0.00024579,2]
[391313916,1760511037993,-300.0,0.00024579,2]
[391313917,1760511038002,-300.0,0.00024579,2]
[391313918,1760511038011,-500.0,0.00024579,2]
[391313919,1760511038019,-507.15,0.0002458,14]
[391313920,1760511038028,-515.60411486,0.0002458,2]
[391313921,1760511038037,-500.0,0.0002458,14]
[391313922,1760511038046,-3735.41,0.0002458,7]
[391313923,1760511038055,-2931.55,0.0002458,14]
[391313924,1760511038065,-500.0,0.0002458,2]
[391313925,1760511038073,-753.96,0.0002458,14]
[391313926,1760511038083,-322.46432722,0.0002458,14]
[391313927,1760511038091,-500.0,0.0002458,2]
[391313928,1760511038100,-491.24480169,0.0002458,14]
[391313929,1760511038109,-219.62556258,0.0002458,14]
[391313930,1760511038118,-500.0,0.0002458,3]
[391313931,1760511038127,-500.0,0.0002458,14]
[391313933,1760511038136,-243.31410627,0.0002458,14]
[391313934,1760511038145,-516.8844986,0.0002458,14]
[391313935,1760511038155,-446.5568822,0.0002458,14]
[391313936,1760511038164,-500.0,0.0002458,2]
[391313938,1760511038173,-500.0,0.0002458,14]
[391313939,1760511038182,-8704.5250905,0.0002458,2]
[391313969,1760511039742,-666.34338392,0.0002458,2]
[391313970,1760511039753,-12477.21689515,0.0002458,2]
[391313972,1760511039763,-200.0,0.00024679,2]
[391313974,1760511039775,-500.0,0.0002468,14]
[391313976,1760511039787,-500.0,0.0002468,14]
[391313978,1760511039796,-500.0,0.0002468,14]
[391313980,1760511039805,-434.62555048,0.0002468,14]
[391313982,1760511039814,-330.0,0.00024786,2]
[391313984,1760511039824,-1000.36815606,0.00024852,2]
[391313986,1760511039833,-507.15,0.00024853,14]
[391314001,1760511039956,-500.0,0.00024853,14]
[391314003,1760511039970,-3735.41,0.00024853,7]
[391314005,1760511039979,-2931.55,0.00024853,14]
[391314007,1760511039989,-753.96,0.00024853,14]
[391314009,1760511039998,-153.32722346,0.00024853,2]
[391314011,1760511040007,-500.0,0.00024853,3]
[391314013,1760511040016,-500.0,0.00024853,14]
[391314015,1760511040025,-500.61500053,0.00024853,2]
[391314017,1760511040034,-500.0,0.00024853,2]
[391314019,1760511040043,-188.39849178,0.00024899,2]
[391314021,1760511040052,-180.06194468,0.00024943,8]
[391314023,1760511040061,-400.19165682,0.00024953,14]
[391314025,1760511040071,-500.0,0.00024953,14]
[391314027,1760511040079,-499.99,0.00024953,14]
[391314029,1760511040088,-300.0,0.00025069,20]
[391314031,1760511040098,-300.0,0.00025069,20]
[391314033,1760511040107,-507.15,0.00025127,14]
[391314035,1760511040115,-500.0,0.00025127,14]
[391314037,1760511040125,-3735.41,0.00025127,7]
[391314039,1760511040134,-2931.55,0.00025127,14]
[391314041,1760511040143,-753.96,0.00025127,14]
[391314043,1760511040153,-500.0,0.00025127,14]
[391314045,1760511040163,-500.0,0.00025127,2]
[391314047,1760511040172,-500.0,0.00025227,14]
[391314049,1760511040182,-500.0,0.00025236,2]
[391314051,1760511040191,-500.0,0.00025275,2]
[391314053,1760511040200,-500.0,0.00025291,2]
[391314055,1760511040210,-368.66381539,0.00025302,2]
[391314057,1760511040219,-500.0,0.00025346,2]
[391314059,1760511040229,-500.0,0.000254,2]
[391314061,1760511040238,-507.15,0.00025401,14]
[391314063,1760511040248,-500.0,0.00025401,14]
[391314065,1760511040257,-3735.41,0.00025401,7]
[391314066,1760511040266,-2931.55,0.00025401,14]
[391314067,1760511040276,-753.96,0.00025401,14]
[391314068,1760511040286,-500.0,0.00025401,14]
[391314069,1760511040295,-498.41371722,0.00025401,2]
[391314070,1760511040304,-500.0,0.00025455,2]
[391314071,1760511040313,-503.03277051,0.00025483,2]
[391314072,1760511040322,-209.30225434,0.000255,2]
[391314073,1760511040331,-304.696987,0.000255,2]
[391314074,1760511040341,-203.70574994,0.000255,2]
[391314075,1760511040350,-500.0,0.00025501,14]
[391314076,1760511040359,-500.0,0.0002551,2]
[391314077,1760511040368,-417.15472785,0.00025516,2]
[391314078,1760511040383,-500.0,0.00025565,2]
[391314079,1760511040393,-250.0,0.00025602,2]
[391314080,1760511040402,-250.0,0.00025602,2]
[391314081,1760511040411,-250.0,0.00025602,2]
[391314082,1760511040419,-18603.8837,0.00025602,2]
[391314083,1760511040429,-250.0,0.00025602,2]
[391314084,1760511040438,-250.0,0.00025602,2]
[391314085,1760511040447,-250.0,0.00025602,2]
[391314086,1760511040456,-250.0,0.00025602,2]
[391314087,1760511040465,-250.0,0.00025602,2]
[391314088,1760511040475,-250.0,0.00025602,2]
[391314089,1760511040484,-250.0,0.00025602,2]
[391314090,1760511040494,-250.0,0.00025602,2]
[391314091,1760511040503,-250.0,0.00025602,2]
[391314092,1760511040512,-250.0,0.00025602,2]
[391314093,1760511040522,-250.0,0.00025602,2]
[391314094,1760511040531,-250.0,0.00025602,2]
[391314095,1760511040540,-250.0,0.00025602,2]
[391314096,1760511040549,-250.0,0.00025602,2]
[391314097,1760511040558,-159.50572267,0.00025602,2]
[391314098,1760511040567,-186.87223723,0.00025619,2]
[391314099,1760511040576,-274.99472955,0.0002562,2]
[391314100,1760511040587,-160.0,0.00025659,2]
[391314101,1760511040596,-507.15,0.00025675,14]
[391314102,1760511040605,-500.0,0.00025675,14]
[391314103,1760511040614,-3735.41,0.00025675,7]
[391314104,1760511040623,-2931.55,0.00025675,14]
[391314105,1760511040633,-753.96,0.00025675,14]
[391314106,1760511040642,-500.0,0.00025675,14]
[391314107,1760511040651,-1072.78,0.00025747,2]
[391314108,1760511040660,-5592.41657338,0.00025769,2]
[391314109,1760511040671,-258.22,0.00025769,2]
[391314110,1760511040685,-302.38100002,0.00025769,2]
[391314111,1760511040696,-156.25406756,0.00025769,2]
[391314112,1760511040706,-451.59621594,0.00025775,14]
[391314119,1760511042855,-48.40378406,0.00025775,14]
[391314120,1760511042864,-67.65066754,0.000258,2]
[391314121,1760511042875,-141.6515868,0.000258,2]
[391314122,1760511042884,-304.696987,0.000258,2]
[391314123,1760511042892,-203.70574994,0.000258,2]
[391314124,1760511042902,-736.70567626,0.00025803,10]
[391314125,1760511042938,-2651.55432374,0.00025803,10]
[391314126,1760511042947,-223.170057,0.00025813,10]
[391314127,1760511042956,-4168.91561926,0.00025813,2]
[391314137,1760511045813,-29093.42244238,0.00025813,2]
[391314138,1760511080510,150.0,0.00028493,120]
[391314140,1760511182886,1002.0,3e-06,2]
[391314141,1760511442457,150.77,0.00028493,120]
[391314157,1760511623144,160.59205047,0.000284,120]
[391314158,1760511743322,4705.3916,0.00018905,2]
[391314161,1760511932483,720.20436904,0.00018905,2]
[391314162,1760512106944,300.0,0.000189,2]
[391314163,1760512120744,300.0,0.000189,2]
[391314164,1760512133123,300.0,0.000189,2]
[391314165,1760512146651,300.0,0.000189,2]
[391314166,1760512152121,-251.73603798,0.00019191,2]
[391314167,1760512152141,-160.0,0.00019878,2]
[391314168,1760512152162,-169.19218942,0.00019879,2]
[391314169,1760512152184,-244.01,0.0002078,2]
[391314170,1760512152205,-445.56062751,0.00022669,2]
[391314171,1760512160220,300.0,0.000189,2]
[391314172,1760512165564,192.28995488,0.000189,2]
[391314217,1760512231949,-238.19,0.00020792,2]
[391314219,1760512231959,-246.49436027,0.00022682,2]
[391314248,1760512232216,-229.88563973,0.00022682,2]
[391314250,1760512232226,-1909.21079569,0.00024,2]
[391314387,1760512245955,-51.32365394,0.00024,2]
[391314388,1760512246138,-3605.40555037,0.00024,2]
[391314389,1760512246147,-714.57,0.00024572,2]
[391314390,1760512246157,-1200.0,0.00024577,2]
[391314391,1760512246167,-300.0,0.00024578,2]
[391314392,1760512246176,-300.0,0.00024578,2]
[391314393,1760512246185,-300.0,0.00024578,2]
[391314394,1760512246194,-300.0,0.00024578,2]
[391314395,1760512246203,-1200.0,0.00024579,2]
[391314396,1760512246212,-500.0,0.0002458,2]
[391314397,1760512246221,-500.0,0.0002458,14]
[391314398,1760512246230,-1763.89642386,0.00024614,2]
[391314399,1760512246239,-225.55147277,0.00024614,2]
[391314400,1760512246247,-160.13837816,0.00024852,14]
[391314401,1760512246256,-500.0,0.00024852,14]
[391314402,1760512246265,-500.0,0.00024852,2]
[391314403,1760512246274,-2957.2,0.00024852,7]
[391314404,1760512246283,-2320.81,0.00024852,14]
[391314405,1760512246292,-596.89,0.00024852,14]
[391314406,1760512246301,-500.0,0.00024852,14]
[391314407,1760512246310,-500.0,0.00024852,14]
[391314408,1760512246319,-240.2087203,0.00024852,14]
[391314409,1760512246329,-500.0,0.00024852,14]
[391314410,1760512246338,-1000.0,0.00024852,2]
[391314411,1760512246347,-500.0,0.00024853,2]
[391314412,1760512246356,-500.0,0.00024853,14]
[391314413,1760512246366,-604.60068019,0.0002499,2]
[391314414,1760512246375,-155.31715807,0.00025026,2]
[391314415,1760512246383,-595.38521628,0.00025092,2]
[391314437,1760513165885,350.863715,0.00013699,2]
[391314441,1760513229074,-350.863715,0.00020187,2]
[391314442,1760513229095,-187.23266888,0.00020355,2]
[391314443,1760513229117,-150.0,0.00020561,2]
[391314444,1760513229140,-87.3525732,0.0002078,2]
[391314445,1760513231084,-143.0174268,0.0002078,2]
[391314446,1760513231104,-219.40658461,0.00021161,2]
[391314447,1760513231125,-460.74,0.00022669,2]
[391314448,1760513231146,-691.11,0.00024558,2]
[391314449,1760513231166,-1200.0,0.0002485,2]
[391314450,1760513231187,-300.0,0.0002485,2]
[391314451,1760513231208,-2833.98,0.00024851,7]
[391314452,1760513231226,-2224.11,0.00024851,14]
[391314453,1760513231244,-572.02,0.00024851,14]
[391314454,1760513231263,-458.46314491,0.00024852,2]
[391314455,1760513231281,-160.0,0.00024974,2]
[391314456,1760513231302,-500.0,0.00024999,14]
[391314457,1760513231322,-229.23315814,0.00024999,14]
[391314458,1760513231341,-500.0,0.00024999,2]
[391314459,1760513231361,-12550.41838621,0.00025,2]
[391314460,1760513231380,-85.7536797,0.00025092,2]
[391314461,1760513231399,-2833.98,0.00025125,7]
[391314462,1760513231420,-2224.11,0.00025125,14]
[391314463,1760513231440,-572.02,0.00025125,14]
[391314464,1760513231460,-152.445,0.00025125,9]
[391314465,1760513231482,-479.79695748,0.00025125,14]
[391314466,1760513231501,-360.74509108,0.00025125,14]
[391314467,1760513231520,-1000.0,0.00025125,2]
[391314468,1760513231539,-500.0,0.00025125,14]
[391314469,1760513231560,-515.8380329,0.00025207,2]
[391314470,1760513231580,-9271.4582114,0.00025208,2]
[391314471,1760513231599,-503.9852184,0.00025208,2]
[391314472,1760513231619,-2281.7344934,0.00025208,2]
[391314473,1760513231638,-1091.2189516,0.00025208,2]
[391314474,1760513231658,-500.0,0.00025273,14]
[391314475,1760513231679,-500.0,0.00025273,2]
[391314476,1760513231700,-500.0,0.00025273,2]
[391314477,1760513231718,-18204.76179574,0.00025274,3]
[391314478,1760513231737,-2833.98,0.00025399,7]
[391314479,1760513231756,-2224.11,0.00025399,14]
[391314480,1760513231899,-572.02,0.00025399,14]
[391314481,1760513231919,-1000.0,0.00025399,2]
[391314482,1760513231939,-500.0,0.00025399,14]
[391314483,1760513231960,-2219.47951909,0.00025445,2]
[391314484,1760513231980,-4401.34870169,0.00025464,2]
[391314485,1760513232000,-4278.94290874,0.00025464,2]
[391314486,1760513232023,-500.0,0.00025547,14]
[391314487,1760513232043,-1001.58,0.00025554,3]
[391314488,1760513232062,-500.79,0.00025554,3]
[391314489,1760513232081,-250.4,0.00025554,3]
[391314490,1760513232100,-160.12111255,0.00025563,2]
[391314491,1760513232120,-74979.2744285,0.00025564,2]
[391314495,1760513254088,-776.76175938,0.00025464,2]
[391314496,1760513254109,-3521.07896136,0.00025464,2]
[391314497,1760513254130,-2823.55,0.00025554,10]
[391314498,1760513254150,-751.21,0.00025554,3]
[391314499,1760513254170,-2352.96,0.00025554,10]
[391314500,1760513254192,-131969.13178402,0.00025564,2]
[391314501,1760513353083,-212.78,0.00020884,2]
[391314502,1760513353102,-8181.15463264,0.000215,2]
[391314503,1760513353123,-425.56,0.00022783,2]
[391314504,1760513353144,-300.0,0.00022999,2]
[391314505,1760513353164,-6702.71288442,0.00023,2]
[391314512,1760513432103,-204.65,0.00020301,2]
[391314513,1760513432112,-409.31,0.00022147,2]
[391314514,1760513432122,-384.68338519,0.00023,2]
[391314515,1760513432131,-613.96,0.00023992,2]
[391314516,1760513432141,-666.0,0.00024326,2]
[391314517,1760513432150,-1628.24499429,0.00024953,2]
[391314518,1760513432159,-300.0,0.00024989,2]
[391314519,1760513432168,-1234.04,0.0002499,10]
[391314520,1760513432177,-2113.12,0.0002499,10]
[391314521,1760513432186,-2479.74,0.00024999,7]
[391314522,1760513432195,-1946.09,0.00024999,14]
[391314523,1760513432203,-500.52,0.00024999,14]
[391314524,1760513432212,-167.92563073,0.00024999,2]
[391314525,1760513432221,-500.0,0.00024999,2]
[391314526,1760513432230,-500.0,0.00024999,2]
[391314527,1760513432239,-321.08605992,0.00024999,2]
[391314528,1760513432248,-67142.17394776,0.00025,15]
[391314529,1760513432260,-33857.82605224,0.00025,15]
[391314530,1760513432269,-1500.14310217,0.00025,7]
[391314532,1760513432279,-2479.74,0.00025273,7]
[391314534,1760513432288,-1946.09,0.00025273,14]
[391314536,1760513432297,-500.52,0.00025273,14]
[391314538,1760513432307,-5171.3818594,0.00025274,3]
[391314539,1760513432319,-10432.6981406,0.00025274,3]
[391314540,1760513432328,-3523.49369277,0.00025473,2]
[391314541,1760513432339,-2479.74,0.00025547,7]
[391314542,1760513432348,-1946.09,0.00025547,14]
[391314543,1760513432358,-500.52,0.00025547,14]
[391314544,1760513432368,-317.22,0.00025554,3]
[391314545,1760513432382,-31587.52045498,0.00025564,2]
[391314546,1760513432394,-9748.598,0.00025564,2]
[391314547,1760513432406,-1800.0,0.00025564,2]
[391314675,1760513438548,-1760.93,0.00025554,10]
[391314676,1760513438558,-250722.74965979,0.00025564,2]
[391314677,1760513438569,-1996.80659874,0.00025564,2]
[391314678,1760513438581,-26686.22426701,0.00025564,2]
[391314728,1760513440218,-86.16099523,0.00025564,2]
[391314733,1760513440237,-2015.18998584,0.00025564,2]
[391315352,1760513446282,-25608.80990524,0.00025564,2]
[391316920,1760514187118,212.57273834,0.000284,120]
[391316955,1760514435105,-150.0,0.00020258,2]
[391316956,1760514435126,-423.97863795,0.000203,2]
[391316957,1760514435147,-172.5,0.00020858,2]
[391316958,1760514435168,-195.0,0.00021458,2]
[391316959,1760514435189,-217.5,0.00022058,2]
[391316960,1760514435209,-240.0,0.00022658,2]
[391316961,1760514435228,-509.68033488,0.00023059,2]
[391316962,1760514435248,-1115.97337673,0.0002499,2]
[391316963,1760514435268,-1200.0,0.00024997,2]
[391316964,1760514435288,-300.0,0.00024997,2]
[391316965,1760514435307,-2169.77,0.00024998,7]
[391316966,1760514435325,-1702.83,0.00024998,14]
[391316967,1760514435344,-500.0,0.00024998,14]
[391316968,1760514435362,-1000.0,0.00024998,2]
[391316969,1760514435381,-500.0,0.00024998,14]
[391316970,1760514435401,-500.0,0.00024999,2]
[391316971,1760514435421,-1792.67259139,0.00025038,2]
[391316972,1760514435442,-190.93,0.00025261,2]
[391316973,1760514435460,-2169.77,0.00025272,7]
[391316974,1760514435479,-1702.83,0.00025272,14]
[391316975,1760514435501,-500.0,0.00025272,14]
[391316976,1760514435521,-1003.77798456,0.00025272,2]
[391316977,1760514435540,-500.0,0.00025272,14]
[391316978,1760514435559,-2926.35097845,0.00025354,2]
[391316979,1760514435579,-2421.75760994,0.00025354,2]
[391316980,1760514435600,-281.8529583,0.00025366,2]
[391316981,1760514435620,-2530.3406793,0.00025366,2]
[391316982,1760514435639,-657.81164934,0.00025427,2]
[391316983,1760514435659,-584.25,0.00025444,3]
[391316984,1760514435679,-292.13,0.00025444,3]
[391316985,1760514435698,-876.4,0.00025444,3]
[391316986,1760514435719,-1467.44,0.00025444,10]
[391316987,1760514435739,-500.0,0.00025445,14]
[391316988,1760514435759,-18603.8837,0.00025449,2]
[391316989,1760514435779,-201248.2280287,0.00025454,2]
[391316990,1760514549303,-4166.54456279,0.00030489,30]
[391316991,1760514549335,-150.11851,0.00030489,60]
[391316992,1760514549373,-173.16331878,0.00030489,60]
[391316993,1760514549406,-1464.45092003,0.00030489,120]
[391316994,1760514549439,-2369.0,0.00030489,120]
[391316995,1760514549473,-684.2078908,0.00030489,35]
[391316996,1760514549505,-278.0,0.00030489,120]
[391316997,1760514549537,-155.0,0.00030489,120]
[391316998,1760514549570,-960.9142255,0.00030489,32]
[391316999,1760514549603,-3261.69518764,0.00030489,30]
[391317000,1760514549635,-409.52312859,0.00030489,30]
[391317001,1760514549668,-489.59059279,0.00030489,120]
[391317002,1760514549701,-8129.03470865,0.00030489,120]
[391317003,1760514549733,-240.97,0.00030489,40]
[391317004,1760514549766,-780762.1611,0.00030489,30]
[391317005,1760514549798,-150.0,0.00030489,30]
[391317006,1760514549829,-8140.35478968,0.00030489,120]
[391317007,1760514555080,-574.45401753,0.00020434,2]
[391317008,1760514555104,-188.5,0.00020534,2]
[391317009,1760514555127,-306.13263734,0.00022401,2]
[391317048,1760514632495,-162.90219423,0.00020235,2]
[391317050,1760514632506,-19.30780577,0.00020235,2]
[391317052,1760514632515,-364.42,0.00022074,2]
[391317054,1760514632525,-190.25083218,0.00023914,2]
[391317171,1760514638221,-356.37916782,0.00023914,2]
[391317172,1760514638231,-300.0,0.00025163,2]
[391317173,1760514638240,-2735.98530199,0.00025164,3]